Cogmind - Beta 15 @@@ ROGUE MODE // 2025.08.03 @ 12:22:41 Player: ToBeDefined Result: Destroyed by 8R-AWN with 8R-AWN's Boregun Performance ------------- Evolutions (0) 0 Regions Visited (3) 600 Robots Destroyed (29) 145 Value Destroyed (534) 534 Prototype IDs (0) 0 Alien Tech Used (0) 0 Bonus (0) 0 TOTAL SCORE: 1279 Bonus ------- None Cogmind --------- Core Integrity 0/250 Matter 289/300 Energy 99/100 System Corruption 4% Temperature Cool (28) Movement Core (200) Ox3 Location -10/Exiles Parts ------- > --- POWER (1) -------- (None) > --- PROPULSION (2) --- (None) > --- UTILITY (2) ------ Medium Storage Unit > --- WEAPON (2) ------- Light Assault Rifle > --- INVENTORY (10) --- Light Treads Aluminum Leg Compact Wheel Scrap Suit Small Laser Rocket Launcher Peak State ------------ > --- POWER ------------ Light Nuclear Core > --- PROPULSION ------- Aluminum Leg Aluminum Leg > --- UTILITY ---------- Medium Storage Unit Core Shielding > --- WEAPON ----------- Particle Gun Light Assault Rifle > --- INVENTORY -------- Ion Engine Light Treads Aluminum Leg Compact Wheel Scrap Suit Small Laser Light Assault Rifle Light Assault Rifle Rocket Launcher [Rating: 11] Favorites ----------- Power Light Nuclear Core Engine Ion Engine Power Core Light Nuclear Core Propulsion Light Treads Treads Light Treads Leg Aluminum Leg Utility Core Shielding Device Heat Sink Storage Medium Storage Unit Protection Core Shielding Weapon Light Assault Rifle Energy Gun Particle Gun Ballistic Gun Light Assault Rifle Build | -11 -10 -10 -10 ------- Run | Yrd Mat Min Exi Slots Evolved . | . . . . Power . | . . . . Propulsion . | . . . . Utility . | . . . . Weapon . | . . . . Parts Attached 24 | 6 11 6 1 Power 4 | 1 2 1 . Engine 2 | 1 1 . . Core 2 | . 1 1 . Reactor . | . . . . Propulsion 6 | 2 2 2 . Treads 4 | 2 2 . . Leg 2 | . . 2 . Wheel . | . . . . Hover . | . . . . Flight . | . . . . Utility 5 | 1 4 . . Device 1 | . 1 . . Storage 2 | 1 1 . . Processor . | . . . . Hackware . | . . . . Protection 2 | . 2 . . Artifact . | . . . . Weapon 9 | 2 3 3 1 Energy Gun 3 | . 2 1 . Energy Cannon . | . . . . Ballistic Gun 6 | 2 1 2 1 Ballistic Cannon . | . . . . Launcher . | . . . . Special Weapon . | . . . . Impact Weapon . | . . . . Slashing Weapon . | . . . . Piercing Weapon . | . . . . Special Melee Weapon . | . . . . Unidentified Prototypes . | . . . . Parts Lost 13 | . 4 1 8 Power 3 | . 1 . 2 Propulsion 4 | . 1 1 2 Utility 1 | . . . 1 Weapon 5 | . 2 . 3 Highest Loss Streak 8 | . 3 1 8 To Critical Strikes 1 | . . . 1 Average Backups 8 | 5 7 9 8 Power 1 | . 1 1 . Propulsion 3 | 3 3 2 3 Utility . | . . . 1 Weapon 3 | 1 2 4 3 Tool/Special . | . . . . Unused Backups 11 | . 5 1 5 Power 2 | . 2 . . Propulsion 3 | . 1 . 2 Utility 1 | . . . 1 Weapon 5 | . 2 1 2 Tool/Special . | . . . . Average Slot Usage (%) 97 | . 96 99 94 Engine 5 | . 9 1 . Core 8 | . 4 12 10 Treads 16 | . 27 3 . Leg 11 | . . 24 25 Storage 14 | . 14 14 14 Protection 12 | . 11 14 14 Energy Gun 8 | . 8 8 13 Ballistic Gun 19 | . 19 19 14 Peak Build Rating 11 | 6 10 11 11 Average Rating 8 | 5 7 10 10 On Entrance 6 | . 6 7 11 Naked Turns . | . . . . Heaviest Build 21 | 12 21 20 20 Greatest Support 40 | 40 40 40 20 Greatest Overweight (x) 1 | . . 1 . Average Overweight (x) . | . . . . Largest Inventory Capacity 10 | 8 10 10 10 Average Capacity 9 | 7 8 10 10 Most Carried 10 | 8 8 10 10 Average Carried 8 | 5 7 9 9 Final Capacity 10 | 8 10 10 10 Final Carried 10 | 8 7 10 7 Class Distribution -------------------- 100% | Mutant Dominant Class ---------------- Mutant | -10/Materials Mutant | -10/Mines Mutant | -10/Exiles Resources | -11 -10 -10 -10 ----------- Run | Yrd Mat Min Exi Matter Collected 758 | 314 274 170 . Remotely . | . . . . Salvage Created 871 | 173 432 228 38 Parts 51 | 15 27 9 . Haulers Intercepted 1 | . 1 . . Recyclers Shooed . | . . . . Parts Field Recycled . | . . . . Retrieved Matter . | . . . . Parts Self-Destructed . | . . . . Prevented . | . . . . Kills | -11 -10 -10 -10 ------- Run | Yrd Mat Min Exi Combat Hostiles Destroyed 19 | . 9 7 3 Guns 19 | . 9 7 3 Classes Destroyed 9 | 3 5 . 1 Worker 1 | 1 . . . Builder 1 | . 1 . . Tunneler 7 | 5 2 . . Hauler 1 | . 1 . . Recycler 1 | 1 . . . Watcher 2 | . 2 . . Swarmer 6 | . 3 3 . Grunt 10 | . 6 4 . Assembled 3 | . . . 3 Best Kill Streak 3 | 3 3 3 3 Combat Bots Only 3 | . 3 3 3 Max Kills in Single Turn 2 | 1 1 2 1 Gunslinging 1 | . . 1 . Exploded . | . . . . Melee . | . . . . Uniques/NPCs Destroyed . | . . . . Combat | -11 -10 -10 -10 -------- Run | Yrd Mat Min Exi Hostile Shots Fired 179 | . 100 26 53 Missed 33 | . 23 2 8 Hits 146 | . 77 24 45 Melee 3 | . . . 3 Projectile 143 | . 77 24 42 Critical Strikes 3 | . . . 3 Damage Taken 1694 | . 776 250 668 Core 257 | . 127 24 106 Absorbed by Shields . | . . . . Redirected to Shielding 52 | . 23 5 24 Core Remaining (%) 100 | 100 . . . Volleys Fired 131 | 27 69 22 13 Largest 2 | 2 2 2 2 Hottest 105 | 40 105 85 85 Shots Fired 241 | 54 118 44 25 Gun 241 | 54 118 44 25 Cannon . | . . . . Launcher . | . . . . Special . | . . . . Kinetic 183 | 54 73 41 15 Thermal 41 | . 28 3 10 Explosive . | . . . . Electromagnetic 17 | . 17 . . Robot Hit Streak 11 | 11 8 11 4 Robot Miss Streak 5 | 4 5 3 5 Penetration Max . | . . . . Secondary Targets 3 | . 1 2 . Max Gunslinging Chain 1 | . 1 1 . Shots Hit Robots 154 | 35 75 31 13 Core Hits 68 | 14 33 16 5 Critical Kills 1 | 1 . . . Critical Parts Destroyed . | . . . . Critical Strikes 3 | 1 2 . . Burn 2 | . 2 . . Destroy 1 | 1 . . . Melee Attacks . | . . . . Impact . | . . . . Slashing . | . . . . Piercing . | . . . . Sneak Attacks . | . . . . Combat Hostiles . | . . . . Follow-up Attacks . | . . . . Damage Inflicted 1524 | 285 817 262 160 Guns 1524 | 285 817 262 160 Cannons . | . . . . Explosions . | . . . . Melee . | . . . . Ramming . | . . . . Kinetic 973 | 285 375 232 81 Thermal 456 | . 347 30 79 Explosive . | . . . . Electromagnetic 95 | . 95 . . Impact . | . . . . Slashing . | . . . . Piercing . | . . . . Highest Corruption 4 | . 4 4 4 Average Corruption 3 | . 3 4 4 Corruption Purged . | . . . . Corruption Blocked . | . . . . Effects 42 | . 14 26 2 Message Errors 16 | . 5 10 1 Matter Fused 8 | . 2 6 . Heat Flow Errors 6 | . 3 3 . Energy Discharges 4 | . 2 2 . Data Loss (minor) 4 | . 2 2 . Data Loss (major) 2 | . . 2 . Misfires 1 | . . . 1 Alerts 1 | . . 1 . Overload Shots . | . . . . Overflow Damage . | . . . . Projectiles . | . . . . Explosions . | . . . . Melee . | . . . . Knockbacks . | . . . . Impact . | . . . . Kinetic . | . . . . Secondary . | . . . . Self-Inflicted Damage . | . . . . Shots . | . . . . Rammed . | . . . . Targets Rammed . | . . . . Kicked . | . . . . Crushed . | . . . . Highest Temperature 381 | . 381 269 133 Average Temperature 104 | . 124 65 68 Received Heat Transfer 354 | . 264 90 . Effects 9 | . 9 . . Shutdowns 1 | . 1 . . Energy Bleed 1 | . 1 . . Interference 4 | . 4 . . Matter Decay 2 | . 2 . . Damage (minor) 1 | . 1 . . Siege Activations . | . . . . Martial Activations . | . . . . Shielding Activations . | . . . . Robots Disrupted . | . . . . Combat Hostiles . | . . . . Robots Corrupted . | . . . . Combat Hostiles . | . . . . Parts Fried . | . . . . Impact Corruptions . | . . . . Robots Melted . | . . . . Combat Hostiles . | . . . . Parts Melted 5 | . 4 1 . Heat Transferred 1221 | . 962 74 185 Parts Sabotaged . | . . . . Parts Stolen . | . . . . Parts Stripped . | . . . . Power Chain Reactions . | . . . . Alert | -11 -10 -10 -10 ------- Run | Yrd Mat Min Exi Maximum Alert Level . | . . . . Low Security (%) 100 | 100 100 100 . Level 1 . | . . . . Level 2 . | . . . . Level 3 . | . . . . Level 4 . | . . . . Level 5 . | . . . . High Security . | . . . . Max Security . | . . . . Peak Influence 70 | 10 50 70 . Initial . | . . . . Average 8 | . 9 10 . Influence Increases 514 | 35 304 175 . Destroy 0b10 Robot/C 320 | . 180 140 . Destroy 0b10 Robot/NC 65 | 35 30 . . Destroy Leader 66 | . 36 30 . Allied During Kill 5 | . . 5 . Successful Hack 13 | . 13 . . Lose Combat Pursuer 45 | . 45 . . Influence Decreases 514 | 35 304 175 . Time Decay 484 | 35 284 165 . Lost Part 30 | . 20 10 . Squads Dispatched 2 | . 2 . . Investigation 1 | . 1 . . Extermination . | . . . . Reinforcement 1 | . 1 . . Assault . | . . . . Garrison . | . . . . Intercept . | . . . . Searches Triggered . | . . . . Construction Impeded . | . . . . Haulers Reinforced . | . . . . Active Scanning Responses . | . . . . Cargo Convoy Interrupts . | . . . . Stealth | -11 -10 -10 -10 --------- Run | Yrd Mat Min Exi Distress Signals 2 | . 2 . . Communications Jammed . | . . . . Distress Signals . | . . . . Times Spotted 33 | . 19 6 8 Peak Tracking Total 9 | . 3 2 9 Tactical Retreats 2 | . 2 . . Traps | -11 -10 -10 -10 ------- Run | Yrd Mat Min Exi Traps Triggered 3 | . 3 . . Indirectly . | . . . . Trap Hack Attempts . | . . . . Triggered . | . . . . Disarmed . | . . . . Reprogrammed . | . . . . Reused . | . . . . Traps Extracted . | . . . . Installed . | . . . . Triggered . | . . . . Machines | -11 -10 -10 -10 ---------- Run | Yrd Mat Min Exi Machines Disabled . | . . . . Max in Single Turn . | . . . . Machines Repaired . | . . . . Machines Dismantled . | . . . . Machines Sabotaged . | . . . . Overloaded Fab Kills . | . . . . Hacking | -11 -10 -10 -10 --------- Run | Yrd Mat Min Exi Machines Accessed 8 | . 8 . . Terminals 5 | . 5 . . Fabricators . | . . . . Repair Stations 1 | . 1 . . Recycling Units 2 | . 2 . . Scanalyzers . | . . . . Garrison Access . | . . . . Total Hacks 16 | . 16 . . Successful 5 | . 5 . . Failed 11 | . 11 . . Catastrophic 3 | . 3 . . Database Lockouts . | . . . . Manual 7 | . 7 . . Terminals 9 | . 9 . . Fabricators . | . . . . Repair Stations 3 | . 3 . . Recycling Units 4 | . 4 . . Scanalyzers . | . . . . Garrison Access . | . . . . Terminal Hacks 2 | . 2 . . Branch Access Points 1 | . 1 . . Transport Status 1 | . 1 . . Fabricator Hacks . | . . . . Repair Station Hacks 1 | . 1 . . Scan Component 1 | . 1 . . Recycling Unit Hacks 2 | . 2 . . Retrieve Components 2 | . 2 . . Scanalyzer . | . . . . Garrison Access Hacks . | . . . . Unauthorized Hacks . | . . . . Terminals . | . . . . Fabricators . | . . . . Repair Stations . | . . . . Recycling Units . | . . . . Scanalyzers . | . . . . Garrison Access . | . . . . Data Cores Recovered . | . . . . Used . | . . . . Hacking Detections 7 | . 7 . . Full Trace Events . | . . . . Feedback Events . | . . . . Feedback Blocked . | . . . . Robot Schematics Acquired . | . . . . Robots Built . | . . . . Authchips . | . . . . Time . | . . . . Total Robot Build Rating . | . . . . Part Schematics Acquired . | . . . . Parts Built . | . . . . Authchips . | . . . . Time . | . . . . Total Part Build Rating . | . . . . Parts Repaired . | . . . . Time . | . . . . Parts Recycled . | . . . . Recycled Matter . | . . . . Retrieved Matter . | . . . . Retrieved Components 1 | . 1 . . Parts Scanalyzed . | . . . . Part Schematics Acquired . | . . . . Parts Damaged . | . . . . Bothacking | -11 -10 -10 -10 ------------ Run | Yrd Mat Min Exi Used RIF Installer . | . . . . Robots Hacked . | . . . . Non-combat . | . . . . Combat . | . . . . Robot Hacks Applied . | . . . . Relay Couplers Released . | . . . . Fabnet Peak Effective % . | . . . . Robots Rewired . | . . . . Allies Hacked . | . . . . Hacks Repelled . | . . . . Allies | -11 -10 -10 -10 -------- Run | Yrd Mat Min Exi Total Allies 3 | . . 3 . Largest Group 3 | . . 3 2 Highest-Rated Group 40 | . . 40 24 Highest-Rated Ally 16 | . . 16 16 Total Orders 3 | . . 3 . GUARD 3 | . . 3 . Ally Attacks 11 | . . 5 6 Total Damage 113 | . . 46 67 Kills . | . . . . Allies Corrupted . | . . . . Allies Melted . | . . . . Intel | -11 -10 -10 -10 ------- Run | Yrd Mat Min Exi Active Infowar (turns) . | . . . . Robot Analysis Total . | . . . . Derelict Logs Recovered 2 | . . 2 . Drone Launches . | . . . . Drone Recoveries . | . . . . Exploration | -11 -10 -10 -10 ------------- Run | Yrd Mat Min Exi Turns Passed 2939 | 325 1379 1070 165 Spaces Moved 1710 | 154 688 763 105 Core 7 | 7 . . . Treads 885 | 147 688 50 . Legs 818 | . . 713 105 Wheels . | . . . . Hover . | . . . . Flight . | . . . . Fastest Speed 50 | 50 160 120 120 Average Speed 140 | 155 160 122 120 Slowest Speed 190 | 160 160 190 120 Overloaded Moves . | . . . . Propulsion Burnouts . | . . . . Robots Hopped . | . . . . Potential Cave-ins . | . . . . Cave-ins Triggered . | . . . . Exploration Rate (%) 53 | 6 74 99 34 Regions Visited 3 Branch Regions 2 Pre-discovered Areas 1 | . . 1 . Known Exits Taken 1 | . 1 . . Unknown Exits Taken 2 | 1 . 1 . Scrap Searched 3 | . . 3 . Spaces Dug . | . . . . Terrain Destroyed . | . . . . Melee . | . . . . Projectile . | . . . . AOE . | . . . . Terrain Rammed . | . . . . Walls Destroyed . | . . . . Machines Disabled . | . . . . Actions | -11 -10 -10 -10 --------- Run | Yrd Mat Min Exi Total 2041 | 194 865 859 123 Wait 140 | . 76 63 1 Move 1707 | 153 687 762 105 Hop . | . . . . Pick Up 19 | 8 8 3 . Fast Attach 9 | 6 3 . . Attach 8 | . 4 1 3 Detach . | . . . . Swap 13 | . 8 5 . Drop 13 | . 10 3 . Fire 131 | 27 69 22 13 Melee . | . . . . Ram . | . . . . Kick . | . . . . Crush . | . . . . Escape Stasis . | . . . . Rewire 1 | . . . 1 Trap . | . . . . Miscellaneous . | . . . . Route ------- -11/Scrapyard -10/Materials (discovered 4 exits: [*Mat] / *Min x2 / [*Sub]) -10/Mines (discovered 4 exits: [*Mat x2] / [*Exi] / [*Sub]) -10/Exiles (discovered 1 exit: [*Min]) History --------- Turn | Location | Event 15 | -11/Scrapyard | Discovered new exit (range 16) 326 | -11/Scrapyard | Entered Materials 327 | -10/Materials | Build established: Mutant 341 | -10/Materials | Identified exit to Mines 1196 | -10/Materials | Core integrity fell below 50% 1221 | -10/Materials | Discovered new exit (range 11) 1224 | -10/Materials | Lost 3 parts (1n2w) 1293 | -10/Materials | Discovered new exit (range 7) 1705 | -10/Materials | Entered Mines 1709 | -10/Mines | Met a Derelict bent on vengeance 1765 | -10/Mines | Discovered new exit (range 11) 1768 | -10/Mines | Received a Rocket Launcher from a helpful Derelict 1887 | -10/Mines | Assisted by bots powering up and referring to "LRC-V3" 1929 | -10/Mines | Found a Scrap Suit stashed away for nefarious purposes 1932 | -10/Mines | Found Scrap Suit 1937 | -10/Mines | Learned Materials trap positions 1951 | -10/Mines | Learned location of Storage (-9) 2088 | -10/Mines | Discovered new exit (range 10) 2167 | -10/Mines | Deemed a non-threat by the Exiles lab entrance 2167 | -10/Mines | Discovered new exit (range 5) 2285 | -10/Mines | Found a hidden stash of uninstalled traps 2581 | -10/Mines | Discovered new exit (range 6) 2775 | -10/Mines | Entered Exiles 2775 | -10/Exiles | Accompanied by 2 allies 2792 | -10/Exiles | Discovered new exit (range 15) 2829 | -10/Exiles | Met 8R-AWN 2847 | -10/Exiles | Met EX-HEX 2883 | -10/Exiles | Attacked by the Exiles 2927 | -10/Exiles | Core integrity fell below 20% 2940 | -10/Exiles | Destroyed by 8R-AWN with 8R-AWN's Boregun Last Messages --------------- as-18115 destroyed. Ion Engine destroyed. as-61642 destroyed. Aluminum Leg destroyed. Lgt. Assault Rifle destroyed. Particle Gun destroyed. HV Slug penetrates Machine. Machine disabled. HV Slug penetrates Wall. Penetrated by HV Slug. Critical hit (Destroy). Aluminum Leg destroyed. HV Slug penetrates Machine. Penetrated by HV Slug. HV Slug penetrates Machine. Penetrated by HV Slug. Lgt. Assault Rifle destroyed. HV Slug penetrates Wall. Penetrated by HV Slug. Core Shielding destroyed. Map ----- +----------------------------------------------------+ | ?????????????????????????????????????????????????? | | ?????????????????????????????????????????????????? | | ?????????????????????????????????????????????????? | | ?????????????????????????????????????????????????? | | ?????????????????????????????????????????????????? | | ?????????????????????????????????????????????????? | | ?????????????????????????????????????????????????? | | ???????????????????????????????? ?????????????? | | ???????????????????????????????? ????????????? | | ???????????????????????????????" ????????????? | | ??????????????????????????????#" ????????????? | | ??????????????????????????????#" #????????????? | | ?????????????????????????????#"" #????????????? | | ????????????????# ????######"" #????????????? | | ??????????????#X# ?"###""""""" ##???????????? | | ?????????????? "" """ " "" ##???######## | | ????????????? "" "" #####""""""" | | ????????????? " " """ " | | ???????????? "" | | ???????????? " | | ???????????? | | ??????????? | | ??????????? %aag | | ???????????" % """"" = | | ?????????? %######""" =% | | ?????????? @;#????#####""" [ | | ??????????" " ###????????##""" %[ | | ?????????? "" #????????????#"""" | | ????????????? "?????????????#"" | | ????????????? ??????????????"""" | | ???????????????? ??????????????" % | | ??????????????? ??????????????? | | ??????????????? ??????????????? | | ??????????????? ??????????????? | | ?????????????? ????????????????? " | | ?????????????? ??????????????????"" """ | | ?????????????? ????????????????????"" " " ""#" | | ???????????????????????????????????????#""" """##" | | ?????????????????????????????????????????#""????## | | ?????????????????????????????????????????????????? | | ?????????????????????????????????????????????????? | | ?????????????????????????????????????????????????? | | ?????????????????????????????????????????????????? | | ?????????????????????????????????????????????????? | | ?????????????????????????????????????????????????? | | ?????????????????????????????????????????????????? | | ?????????????????????????????????????????????????? | | ?????????????????????????????????????????????????? | | ?????????????????????????????????????????????????? | | ?????????????????????????????????????????????????? | +----------------------------------------------------+ Best States ------------- Heat Dissipation 25 Energy Generation 14 Energy Capacity 250 Matter Stores 300 Matter Capacity 300 Sight Range 16 Terrain Scan Density 10 Core Shielding 20 Evasion (%) 55 Recoil Reduction 2 Item Schematics ----------------- None Robot Schematics ------------------ None Fabricated ------------ Nothing Repaired ---------- Nothing Alien Tech Used ----------------- None Achievements -------------- None Challenges ------------ None Game ------ Seed BiometalChromionCycler Manual? 0 Play Time 00:29:07 Cumulative 23.4 hours Start 2025.08.03 @ 11:55:38 End 2025.08.03 @ 12:22:41 Sessions 1 Manual Loads 0 Difficulty Rogue Special Mode None Game No. 24 Rogue 24 Adventurer 0 Explorer 0 Win Type - Total 0 Types 0/0/0/0/0/0/0/0/0/0 Lore% 18 Gallery% 17 Achievement% 17 Wizard Run 0 Options --------- Layout 1 ASCII 0 Keyboard 0 Movement Mouse Keybinds 0 Fullscreen 1 Font 24/Smallcaps Map View 50x35 Zoom Use 0% Tactical HUD 0 Map Filters NONE Filters NONE Steam 1 RUN: a5c33460-ad76-47d5-be24-8bf239324d31